bitfinex/quotes_SOLUSD_20260224
["timestamp","ask_amount","ask_price","bid_price","bid_amount"]
[1771920633563,32.49014931,76.947,76.89,11.60767471]
[1771920633564,1.44608915,76.929,76.89,11.60767471]
[1771920634068,1.44608915,76.929,76.9,11.60767471]
[1771920634850,1.44608915,76.929,76.885,45.52253364]
[1771920635043,1.44608915,76.919,76.885,13.00643818]
[1771920635663,11.60767471,76.92,76.881,13.00711489]
[1771920635664,13.00085805,76.918,76.881,13.00711489]
[1771920635855,1.44608915,76.917,76.881,13.00711489]
[1771920636473,0.28432314,76.916,76.83,65.07874528]
[1771920636767,1.44608915,76.879,76.84,11.60767471]
[1771920637067,1.44608915,76.879,76.85,11.60767471]
[1771920637651,1.44608915,76.879,76.851,13.01219242]
[1771920638169,1.44608915,76.886,76.851,13.01219242]
[1771920638580,1.44608915,76.886,76.85,11.60767471]
[1771920638581,1.44608915,76.879,76.85,11.60767471]
[1771920638748,1.44608915,76.879,76.84,11.60767471]
[1771920638956,1.44608915,76.859,76.82,11.60767471]
[1771920639653,13.01270039,76.848,76.811,13.01896863]
[1771920639852,1.44608915,76.847,76.811,13.01896863]
[1771920640054,1.44608915,76.847,76.82,11.60767471]
[1771920640453,1.44608915,76.855,76.83,11.60767471]
[1771920640971,14.45354242,76.879,76.85,11.60767471]
[1771920641176,1.44608915,76.878,76.84,11.60767471]
[1771920641354,1.44608915,76.876,76.84,11.60767471]
[1771920641876,1.44608915,76.869,76.84,11.60767471]
[1771920642257,1.44608915,76.869,76.841,13.01388581]
[1771920642874,1.44608915,76.869,76.837,13.01450581]
[1771920643075,1.44608915,76.859,76.829,13.01580444]
[1771920643281,1.44608915,76.849,76.82,11.60767471]
[1771920643576,1.44608915,76.849,76.83,11.60767471]
[1771920644076,1.44608915,76.849,76.811,45.56639022]
[1771920644481,1.44608915,76.845,76.81,11.80767471]
[1771920644662,1.44608915,76.839,76.81,0.2]
[1771920645159,1.44608915,76.839,76.811,13.01896863]
[1771920645360,1.44608915,76.839,76.81,11.80767471]
[1771920645677,1.44608915,76.839,76.811,13.01896863]
[1771920645981,1.44608915,76.837,76.81,11.80767471]
[1771920646181,1.44608915,76.837,76.81,0.2]
[1771920646484,13.01439391,76.838,76.81,0.2]
[1771920646485,1.44608915,76.829,76.81,0.2]
[1771920647075,1.44608915,76.829,76.79,11.60767471]
[1771920647870,1.34608915,76.825,76.791,13.02235939]
[1771920648477,1.35629368,76.819,76.787,13.02302323]
[1771920648683,13.01286972,76.847,76.81,11.60767471]
[1771920648886,11.60767471,76.84,76.799,1.32154099]
[1771920649181,11.60767471,76.84,76.8,11.60767471]
[1771920649182,0.28432314,76.839,76.8,11.60767471]
[1771920650561,13.01370421,76.843,76.811,1.32154099]
[1771920650878,1.35629368,76.842,76.811,1.32154099]
[1771920652468,1.35629368,76.842,76.82,11.60767471]
[1771920652984,1.35629368,76.84,76.812,13.01879914]
[1771920653184,1.35629368,76.84,76.82,11.60767471]
[1771920653487,1.35629368,76.84,76.812,13.01879914]
[1771920653692,1.35629368,76.848,76.821,1.32154099]
[1771920654187,1.35629368,76.848,76.82,11.60767471]
[1771920654775,1.35629368,76.848,76.821,13.01727392]
[1771920654977,1.35629368,76.846,76.821,13.01727392]
[1771920655177,1.35629368,76.846,76.82,11.60767471]
[1771920655894,1.35629368,76.846,76.82,24.62503118]
[1771920657975,1.35629368,76.844,76.82,24.62503118]
[1771920659891,1.35629368,76.844,76.814,13.01846017]
[1771920660197,1.35629368,76.842,76.814,13.01846017]
[1771920661096,1.35629368,76.855,76.82,11.60767471]
[1771920661502,1.35629368,76.855,76.82,12.9292157]
[1771920661792,1.35629368,76.855,76.821,1.32154099]
[1771920662101,1.35629368,76.853,76.821,13.01727392]
[1771920663097,1.35629368,76.859,76.831,1.32154099]
[1771920663480,1.35629368,76.858,76.831,1.32154099]
[1771920664480,1.35629368,76.878,76.821,162.71592401]
[1771920664704,1.35629368,76.878,76.85,11.60767471]
[1771920665378,1.35629368,76.878,76.851,13.01219242]
[1771920666298,1.35629368,76.897,76.861,1.32154099]
[1771920666495,1.35629368,76.897,76.851,45.54267348]
[1771920666496,1.35629368,76.896,76.87,11.60767471]
[1771920666799,1.35629368,76.889,76.86,11.60767471]
[1771920667707,1.35629368,76.887,76.861,13.01049947]
[1771920668404,1.35629368,76.887,76.86,11.60767471]
[1771920668701,1.35629368,76.887,76.86,24.61818329]
[1771920670307,1.35629368,76.885,76.856,13.01124623]
[1771920672103,1.35629368,76.885,76.86,24.61826901]
[1771920672798,1.35629368,76.884,76.86,11.60767471]
[1771920673097,1.35629368,76.884,76.861,13.01049947]
[1771920674107,1.35629368,76.883,76.861,13.01049947]
[1771920675107,11.60767471,76.9,76.87,11.60767471]
[1771920675291,11.60767471,76.89,76.86,11.60767471]
[1771920675490,1.35629368,76.889,76.857,13.01109564]
[1771920675681,1.35629368,76.889,76.86,11.60767471]
[1771920677400,1.35629368,76.887,76.86,11.62309438]
[1771920678988,1.35629368,76.887,76.856,1.44717402]
[1771920679502,1.41219673,76.885,76.857,13.0111766]
[1771920680011,1.41219673,76.885,76.857,14.45835062]
[1771920680505,0.28432314,76.866,76.823,13.01693503]
[1771920680809,1.41219673,76.865,76.824,1.44717402]
[1771920682094,1.41219673,76.865,76.826,1.44717402]
[1771920682303,1.41219673,76.863,76.826,1.44717402]
[1771920683490,1.41219673,76.863,76.828,1.46371782]
[1771920685598,1.41219673,76.863,76.829,45.55571463]
[1771920685786,1.41219673,76.863,76.83,1.46371782]
[1771920687007,1.33373013,76.862,76.83,1.46371782]
[1771920690695,13.01049947,76.861,76.831,13.01557964]
[1771920690890,13.01049947,76.861,76.777,52.09836477]
[1771920690891,11.62413842,76.85,76.789,3.69383402]
[1771920691316,1.33373013,76.849,76.821,1.46371782]
[1771920693113,1.33373013,76.849,76.823,1.46371782]
[1771920695205,1.33373013,76.849,76.818,32.54412684]
[1771920695206,1.33373013,76.849,76.825,1.46371782]
[1771920696996,1.33373013,76.849,76.826,13.01642673]
[1771920697196,1.33373013,76.849,76.827,1.46371782]
[1771920699320,1.33373013,76.849,76.828,13.01608788]
[1771920700106,1.33373013,76.849,76.667,50.91303793]
[1771920700341,1.33373013,76.839,76.8,1.46371782]
[1771920701207,1.33373013,76.829,76.801,13.02066379]
[1771920701633,1.33373013,76.829,76.801,14.48438161]
[1771920701925,1.33373013,76.829,76.802,1.46371782]
[1771920703830,1.33373013,76.829,76.803,13.02032472]
[1771920704018,1.33373013,76.829,76.804,1.46371782]
[1771920704412,1.33373013,76.838,76.804,1.46371782]
[1771920704722,1.33373013,76.849,76.81,1.46371782]
[1771920707212,1.33373013,76.856,76.812,1.46371782]
[1771920709810,1.44195548,76.855,76.814,1.46254154]
[1771920710335,5.2120448,76.85,76.814,1.46254154]
[1771920710632,1.44195548,76.849,76.814,1.46254154]
[1771920711407,1.44195548,76.849,76.813,45.56520379]
[1771920711757,1.44195548,76.839,76.813,1.46254154]
[1771920713841,1.44195548,76.837,76.803,32.55044968]
[1771920714435,1.44195548,76.837,76.804,13.0201552]
[1771920717241,1.44195548,76.835,76.804,1.46254154]
[1771920719132,13.01507145,76.834,76.805,13.01998567]
[1771920719337,1.44195548,76.833,76.805,13.01998567]
[1771920720642,1.44195548,76.833,76.806,1.46254154]
[1771920721930,1.44195548,76.833,76.807,13.01964664]
[1771920722845,1.44195548,76.829,76.803,13.0201894]
[1771920723842,1.44195548,76.829,76.803,1.46254154]
[1771920726434,1.44195548,76.827,76.796,1.46254154]
[1771920728543,1.44195548,76.819,76.778,1.46254154]
[1771920729744,1.44195548,76.809,76.771,1.46254154]
[1771920730334,13.01642673,76.826,76.777,1.46254154]
[1771920730646,1.44195548,76.819,76.781,1.46254154]
[1771920730849,1.44195548,76.809,76.772,13.02558224]
[1771920731029,1.44195548,76.799,76.759,1.46254154]
[1771920731442,0.28432314,76.808,76.759,1.46254154]
[1771920731443,1.44195548,76.789,76.759,1.46254154]
[1771920731649,1.44195548,76.779,76.751,13.0291462]
[1771920732854,1.44195548,76.785,76.752,1.46254154]
[1771920734541,1.44195548,76.783,76.753,14.49134823]
[1771920734853,1.44195548,76.783,76.754,1.46254154]
[1771920735534,1.44195548,76.791,76.754,1.46254154]
[1771920735847,1.44195548,76.798,76.754,1.46254154]
[1771920736048,1.44195548,76.817,76.763,0.28432314]
[1771920736251,1.44195548,76.817,76.77,1.46254154]
[1771920737026,13.01812122,76.816,76.77,1.46254154]
[1771920737232,1.44195548,76.815,76.772,1.46254154]
[1771920737538,1.44195548,76.829,76.78,1.46254154]
[1771920738351,1.44195548,76.829,76.79,1.3766958]
[1771920739238,1.44195548,76.829,76.792,1.3766958]
[1771920739755,1.4420957,76.827,76.792,1.3766958]
[1771920743846,13.01642673,76.826,76.792,1.3766958]
[1771920744050,1.32923626,76.825,76.792,1.3766958]
[1771920746045,1.32923626,76.823,76.792,1.3766958]
[1771920746551,1.32923626,76.823,76.794,1.40862163]
[1771920748642,1.32923626,76.821,76.794,1.40862163]
[1771920749662,1.32923626,76.821,76.789,1.40862163]
[1771920750246,45.55986565,76.822,76.75,57.67777594]
[1771920750247,1.32923626,76.819,76.782,1.40862163]
[1771920750452,1.32923626,76.819,76.776,1.40862163]
[1771920753754,1.32923626,76.817,76.777,13.02473396]
[1771920754660,1.32923626,76.809,76.76,1.40862163]
[1771920754860,1.32923626,76.799,76.76,1.40862163]
[1771920756069,1.32923626,76.797,76.762,1.40862163]
[1771920758251,1.32923626,76.813,76.77,1.40862163]
[1771920759658,1.32923626,76.829,76.779,0.28432314]
[1771920759875,1.32923626,76.829,76.78,1.40862163]
[1771920760056,1.32923626,76.829,76.79,1.40862163]
[1771920760255,1.32923626,76.827,76.792,1.40862163]
[1771920762154,1.32923626,76.827,76.794,1.40862163]
[1771920762975,1.32923626,76.844,76.798,1.40862163]
[1771920763149,1.32923626,76.854,76.81,1.40862163]
[1771920763475,1.32923626,76.839,76.793,13.02202023]
[1771920763649,1.32923626,76.839,76.794,1.40862163]
[1771920763847,1.32923626,76.829,76.784,1.40862163]
[1771920764072,1.32923626,76.829,76.785,1.40862163]
[1771920765448,1.32923626,76.827,76.787,1.40862163]
[1771920769073,1.31622734,76.825,76.789,1.37142802]
[1771920769280,1.31622734,76.83,76.789,1.37142802]
[1771920770180,1.31622734,76.829,76.789,1.37142802]
[1771920772575,1.31622734,76.827,76.791,1.37142802]
[1771920774771,5.21736239,76.82,76.778,1.37142802]
[1771920774978,1.31622734,76.819,76.778,1.37142802]
[1771920776284,1.31622734,76.817,76.78,1.37142802]
[1771920778587,1.31622734,76.817,76.782,1.37142802]
[1771920778788,1.31622734,76.816,76.782,1.37142802]
[1771920780787,1.31622734,76.816,76.784,1.37142802]
[1771920781182,1.31622734,76.816,76.783,45.58300664]
[1771920781183,1.31622734,76.823,76.785,0.28432314]
[1771920781484,1.31622734,76.842,76.8,1.37142802]
[1771920782085,1.31622734,76.842,76.81,1.37142802]
[1771920782587,1.31622734,76.849,76.81,1.37142802]
[1771920783284,1.31622734,76.849,76.786,3.69383402]
[1771920783285,1.31622734,76.847,76.812,1.37142802]
[1771920785585,1.31622734,76.847,76.813,13.01862965]
[1771920785903,1.31622734,76.845,76.8,1.37142802]
[1771920787987,1.31622734,76.839,76.801,14.39209181]
[1771920788390,1.31622734,76.839,76.802,1.37142802]
[1771920789004,1.31622734,76.837,76.802,1.37142802]
[1771920789789,1.31622734,76.837,76.803,1.37142802]
[1771920791709,1.31622734,76.835,76.805,1.37142802]
[1771920793798,1.31622734,76.835,76.795,32.55386188]
[1771920793799,1.31622734,76.833,76.806,14.39124418]
[1771920794710,1.31622734,76.833,76.807,1.37142802]
[1771920798195,1.31622734,76.833,76.809,1.29729979]
[1771920799295,1.31622734,76.833,76.811,1.29729979]
[1771920801838,1.31622734,76.833,76.812,14.31609893]
[1771920802223,1.31622734,76.833,76.813,1.29729979]
[1771920802817,1.31622734,76.833,76.812,13.01879914]
[1771920803813,1.34357093,76.829,76.8,1.39420981]
[1771920804914,1.34357093,76.837,76.802,1.39420981]
[1771920806622,1.34357093,76.837,76.801,13.02066379]
[1771920807204,1.34357093,76.835,76.801,1.39420981]
[1771920807824,1.34357093,76.845,76.801,1.39420981]
[1771920808008,1.34357093,76.845,76.809,1.39420981]
[1771920809224,1.34357093,76.854,76.811,1.39420981]
[1771920809424,1.34357093,76.854,76.814,0.28432314]
[1771920809621,1.34357093,76.867,76.829,1.39420981]
[1771920810503,1.34357093,76.882,76.838,0.14216157]
[1771920810710,1.34357093,76.881,76.839,1.39420981]
[1771920811319,1.34357093,76.881,76.841,1.39420981]
[1771920812628,1.34357093,76.879,76.843,1.39420981]
[1771920816427,1.34357093,76.879,76.818,52.07074451]
[1771920816428,1.34357093,76.879,76.845,1.39420981]
[1771920818636,1.34357093,76.869,76.829,1.39420981]
[1771920820608,1.34357093,76.869,76.831,1.39420981]
[1771920822327,1.34357093,76.867,76.833,1.39420981]
[1771920822632,1.34357093,76.867,76.832,45.55393585]
[1771920823034,1.34357093,76.867,76.833,1.39420981]
[1771920823232,1.34357093,76.867,76.835,1.39420981]
[1771920824428,1.34357093,76.866,76.836,13.01473267]
[1771920824633,1.34357093,76.859,76.808,1.39420981]
[1771920824931,5.21313482,76.88,76.815,1.67853295]
[1771920824932,1.34357093,76.866,76.815,1.67853295]
[1771920825236,1.34357093,76.866,76.817,1.67853295]
[1771920825418,1.34357093,76.866,76.819,1.67853295]
[1771920826231,13.00690167,76.883,76.819,1.67853295]
[1771920826232,1.34357093,76.874,76.819,1.67853295]
[1771920826729,1.34357093,76.874,76.834,1.39420981]
[1771920826921,1.34357093,76.872,76.838,1.39420981]
[1771920828619,1.26155618,76.869,76.824,1.27356999]
[1771920830020,1.26155618,76.867,76.823,13.01693503]
[1771920830228,1.26155618,76.859,76.823,13.01693503]
[1771920831618,1.26155618,76.857,76.824,1.27356999]
[1771920833045,1.26155618,76.857,76.799,52.08381295]
[1771920833046,1.26155618,76.857,76.826,1.27356999]
[1771920834738,1.26155618,76.857,76.828,1.27356999]
[1771920840758,1.26155618,76.857,76.83,1.27356999]
[1771920841454,1.26155618,76.857,76.803,52.08125183]
[1771920841455,1.26155618,76.855,76.82,13.01744337]
[1771920841626,1.26155618,76.849,76.809,13.01930763]
[1771920842042,1.26155618,76.849,76.81,1.27356999]
[1771920842739,1.26155618,76.847,76.811,13.01896863]
[1771920843128,1.26155618,76.839,76.811,13.01896863]
[1771920843335,1.26155618,76.839,76.77,5.36086188]
[1771920843336,1.26155618,76.829,76.759,1.27356999]
[1771920843533,1.26155618,76.819,76.76,1.27356999]
[1771920843733,1.26155618,76.819,76.763,1.27356999]
[1771920843951,1.26155618,76.819,76.77,0.28432314]
[1771920844139,1.26155618,76.819,76.779,1.27356999]
[1771920844548,1.26155618,76.799,76.762,1.27356999]
[1771920844855,1.26155618,76.799,76.764,1.27356999]
[1771920849047,1.26155618,76.809,76.77,1.27356999]
[1771920851060,1.26155618,76.807,76.771,45.59013168]
[1771920851257,1.26155618,76.807,76.771,46.86370167]
[1771920851836,1.26155618,76.807,76.771,45.59013168]
[1771920852038,1.26155618,76.807,76.772,1.27356999]
[1771920853944,1.26155618,76.807,76.774,1.27356999]
[1771920854151,1.26155618,76.826,76.78,1.27356999]
[1771920855338,1.26155618,76.838,76.79,1.27356999]
[1771920856159,1.26155618,76.836,76.792,1.27356999]
[1771920858965,1.2520569,76.834,76.794,1.27078978]
[1771920861161,1.2520569,76.832,76.796,1.27078978]
[1771920866262,13.01557964,76.831,76.797,13.02134197]
[1771920866565,1.23245281,76.83,76.798,1.20656825]
[1771920869168,1.23245281,76.83,76.799,13.02100287]
[1771920869379,1.23245281,76.83,76.8,1.20656825]
[1771920870166,1.23245281,76.849,76.8,1.20656825]
[1771920870755,1.23245281,76.849,76.81,1.20656825]
[1771920870949,1.23245281,76.849,76.8,1.20656825]
[1771920871560,1.23245281,76.847,76.802,1.20656825]
[1771920874970,1.23245281,76.845,76.804,1.20656825]
[1771920877454,1.23245281,76.843,76.805,45.56994986]
[1771920878556,1.23245281,76.841,76.805,1.20656825]
[1771920881486,1.23245281,76.841,76.806,45.56935656]
[1771920882276,1.23245281,76.841,76.806,46.77592481]
[1771920884407,1.23245281,76.839,76.797,1.20656825]
[1771920884574,1.23245281,76.839,76.803,1.20656825]
[1771920884880,1.23245281,76.839,76.809,1.20656825]
[1771920885580,1.23245281,76.839,76.804,1.20656825]
[1771920886661,1.23245281,76.839,76.805,46.77651811]
[1771920886978,1.23245281,76.837,76.801,13.02055504]
[1771920888367,1.2095758,76.829,76.785,33.81961198]
[1771920888884,1.2095758,76.827,76.786,13.02320735]
[1771920891583,1.2095758,76.819,76.786,13.02320735]
[1771920893383,1.2095758,76.817,76.778,1.26121657]
[1771920895283,1.2095758,76.809,76.778,1.26121657]
[1771920895487,1.2095758,76.807,76.752,1.26121657]
[1771920895778,1.2095758,76.807,76.76,1.26121657]
[1771920896162,1.2095758,76.799,76.76,1.26121657]
[1771920898285,1.2095758,76.797,76.762,1.26121657]
[1771920900896,1.2095758,76.795,76.764,1.26121657]
[1771920903287,5.2141884,76.79,76.758,13.02790531]
[1771920903587,5.2141884,76.79,76.75,0.2]
[1771920903588,1.2095758,76.779,76.751,13.02914248]
[1771920904468,13.02456432,76.778,76.751,13.02914248]
[1771920904668,13.02456432,76.778,76.75,13.22921688]
[1771920904669,1.2095758,76.777,76.75,13.22921688]
[1771920905080,1.2095758,76.799,76.751,1.26121657]
[1771920905293,1.2095758,76.819,76.759,1.26121657]
[1771920905496,1.2095758,76.818,76.769,1.26121657]
[1771920906685,1.2095758,76.816,76.771,1.26121657]
[1771920909886,1.2095758,76.816,76.773,1.26121657]
[1771920910496,1.2095758,76.828,76.779,1.26121657]
[1771920912494,1.2095758,76.826,76.781,1.26121657]
[1771920914780,1.2095758,76.826,76.783,1.26083777]
[1771920915292,32.53688466,76.836,76.783,1.26083777]
[1771920915293,1.2095758,76.824,76.783,1.26083777]
[1771920917108,1.2095758,76.831,76.785,1.54143565]
[1771920917399,1.2095758,76.837,76.799,1.25711251]
[1771920920501,1.2095758,76.837,76.801,1.19839854]
[1771920924002,1.2095758,76.837,76.803,1.19684076]
[1771920924500,1.24639132,76.844,76.804,0.28432314]
[1771920924701,202.08570789,77.151,76.816,0.28432314]
[1771920924702,1.24639132,76.855,76.816,0.28432314]
[1771920924895,1.24639132,76.855,76.819,1.19684076]
[1771920925505,1.24639132,76.869,76.819,1.19684076]
[1771920925882,6.80224619,76.893,76.812,0.28432314]
[1771920925883,1.24639132,76.887,76.822,0.28432314]
[1771920926201,1.24639132,76.879,76.832,1.19684076]
[1771920926402,1.24639132,76.869,76.825,1.19684076]
[1771920927407,1.24639132,76.865,76.824,45.55867957]
[1771920927582,1.24639132,76.859,76.824,45.55867957]
[1771920928409,1.24639132,76.857,76.824,32.54191398]
[1771920928791,1.24639132,76.855,76.809,32.54788618]
[1771920928993,1.24639132,76.835,76.791,1.19684076]
[1771920929388,1.24639132,76.829,76.791,1.19684076]
[1771920929593,1.24639132,76.829,76.785,1.19684076]
[1771920930305,1.24639132,76.827,76.786,46.77806649]
[1771920930485,1.24639132,76.827,76.787,1.19684076]
[1771920932419,1.24639132,76.825,76.788,45.58003854]
[1771920932619,1.24639132,76.825,76.788,46.7768793]
[1771920934723,1.24639132,76.823,76.788,13.02286815]
[1771920935014,1.24639132,76.823,76.789,1.19684076]
[1771920935218,1.24639132,76.823,76.788,13.02286815]
[1771920938209,1.24639132,76.819,76.784,13.02354657]
[1771920938413,1.24639132,76.815,76.775,13.02507326]
[1771920938597,1.24639132,76.815,76.776,1.19684076]
[1771920938909,1.24639132,76.809,76.776,1.19684076]
[1771920939699,1.24639132,76.809,76.775,13.02507326]
[1771920940207,1.24639132,76.809,76.768,32.56526936]
[1771920940208,1.24639132,76.808,76.772,1.19684076]
[1771920940995,1.24639132,76.807,76.772,1.19684076]
[1771920943011,1.24639132,76.807,76.774,1.19684076]
[1771920944815,1.24639132,76.805,76.755,32.5707439]
[1771920945014,1.24639132,76.797,76.758,1.19684076]
[1771920945316,65.08064495,76.828,76.757,13.02812772]
[1771920945317,5.21302571,76.83,76.76,1.19684076]
[1771920945615,5.21302571,76.82,76.76,1.19684076]
[1771920947418,1.24639132,76.818,76.762,1.4811639]
[1771920949003,1.16398992,76.809,76.762,1.19684076]
[1771920949622,1.16398992,76.799,76.763,13.02710941]
[1771920950002,45.56816997,76.808,76.75,0.2]
[1771920950003,1.16398992,76.789,76.752,32.57228998]
[1771920950202,1.16398992,76.789,76.753,13.02880669]
[1771920950719,1.16398992,76.789,76.754,1.20359362]
[1771920952913,1.16398992,76.789,76.756,1.20359362]
[1771920953106,1.16398992,76.787,76.756,1.20359362]
[1771920955222,1.16398992,76.787,76.758,1.20359362]
[1771920955524,1.16398992,76.799,76.758,1.20359362]
[1771920955703,1.16398992,76.798,76.758,1.20359362]
[1771920956103,1.16398992,76.798,76.76,1.20359362]
[1771920957529,1.16398992,76.798,76.762,1.20359362]
[1771920959527,1.16398992,76.798,76.764,1.20359362]
[1771920959728,1.16398992,76.821,76.77,1.20359362]
[1771920959910,1.16398992,76.799,76.764,1.20359362]
[1771920960423,1.16398992,76.809,76.764,1.20359362]
[1771920960610,1.16398992,76.809,76.77,1.20359362]
[1771920961613,1.16398992,76.809,76.771,45.36513547]
[1771920961837,1.16398992,76.809,76.772,1.20359362]
[1771920962220,1.16398992,76.818,76.772,1.20359362]
[1771920962843,1.16398992,76.817,76.772,1.20359362]
[1771920963216,1.16398992,76.817,76.78,6.42158433]
[1771920963412,1.16398992,76.817,76.781,1.20359362]
[1771920963832,1.16398992,76.815,76.78,5.21799071]
[1771920964138,1.16398992,76.805,76.771,13.02575191]
[1771920964640,45.56342428,76.816,76.76,5.21799071]
[1771920964641,0.28432314,76.798,76.76,5.21799071]
[1771920964832,5.21799071,76.79,76.761,13.02744883]
[1771920965143,5.21799071,76.78,76.75,13.22916458]
[1771920965347,0.28432314,76.788,76.75,13.22916458]
[1771920965348,1.16398992,76.785,76.761,1.20359362]
[1771920965718,1.16398992,76.785,76.75,18.44715529]
[1771920965925,1.16398992,76.783,76.751,1.20359362]
[1771920966972,1.16398992,76.783,76.75,18.44715529]
[1771920967241,1.16398992,76.779,76.75,18.44715529]
[1771920968245,1.16398992,76.777,76.75,18.44715529]
[1771920970645,1.16398992,76.769,76.74,0.1]
[1771920970829,1.16398992,76.749,76.72,0.2]
[1771920971146,1.16398992,76.749,76.721,1.20359362]
[1771920971446,1.16398992,76.749,76.72,6.62158433]
[1771920971748,1.16398992,76.749,76.721,1.20359362]
[1771920971930,1.16398992,76.749,76.721,46.82343694]
[1771920972129,1.16398992,76.749,76.72,5.41799071]
[1771920972130,1.16398992,76.749,76.72,0.2]
[1771920972950,1.16398992,76.739,76.71,0.2]
[1771920973746,3.69383402,76.758,76.71,0.2]
[1771920973747,1.16398992,76.759,76.73,5.21799071]
[1771920973923,1.16398992,76.766,76.73,5.21799071]
[1771920974123,1.16398992,76.766,76.73,6.42158433]
[1771920974326,1.16398992,76.759,76.73,5.21799071]
[1771920975036,1.16398992,76.757,76.73,6.42158433]
[1771920975354,1.16398992,76.764,76.741,1.20359362]
[1771920976831,1.16398992,76.788,76.751,1.20359362]
[1771920977039,52.05965995,76.835,76.761,1.20359362]
[1771920977040,1.16398992,76.786,76.761,1.20359362]
[1771920978145,1.16398992,76.786,76.76,5.21799071]
[1771920978146,1.16398992,76.795,76.77,5.21799071]
[1771920978352,1.16398992,76.795,76.76,6.40166141]
[1771920979648,1.18718581,76.793,76.761,13.02744883]
[1771920979850,1.18718581,76.793,76.762,1.1836707]
[1771920980448,1.18718581,76.793,76.77,5.21799071]
[1771920981857,1.18718581,76.793,76.771,1.1836707]
[1771920982536,1.18718581,76.808,76.781,1.1836707]
[1771920982733,1.18718581,76.808,76.78,5.21799071]
[1771920982734,1.18718581,76.818,76.784,1.1836707]
[1771920982950,13.01761283,76.819,76.784,1.1836707]
[1771920982951,1.23090977,76.809,76.784,1.1836707]
[1771920983254,1.23090977,76.809,76.78,5.21839078]
[1771920984460,1.23090977,76.809,76.781,13.02405543]
[1771920984755,1.23090977,76.822,76.8,5.21839078]
[1771920984960,1.23090977,76.829,76.81,5.21839078]
[1771920985137,1.23090977,76.843,76.82,5.21839078]
[1771920985338,1.23090977,76.843,76.8,5.21839078]
[1771920985339,1.23090977,76.85,76.83,5.21839078]
[1771920986054,1.23090977,76.857,76.84,5.21839078]
[1771920986448,1.23090977,76.857,76.831,1.23614454]
[1771920986653,1.23090977,76.855,76.831,1.23614454]
[1771920987860,1.23090977,76.877,76.85,5.21839078]
[1771920988360,13.00745327,76.879,76.851,1.23614454]
[1771920988565,13.00745327,76.879,76.86,5.21839078]
[1771920988738,13.00745327,76.879,76.851,1.23614454]
[1771920988942,1.23090977,76.878,76.851,1.23614454]
[1771920989445,14.23746518,76.885,76.86,11.62588199]
[1771920989653,1.23090977,76.879,76.853,1.23614454]
[1771920990163,1.23090977,76.879,76.851,13.01219242]
[1771920990456,1.23090977,76.879,76.85,11.62588199]
[1771920991557,1.23090977,76.877,76.85,12.86202653]
[1771920992057,1.23090977,76.877,76.85,11.62588199]
[1771920993565,1.23090977,76.875,76.85,11.62588199]
[1771920993946,1.23090977,76.875,76.85,12.86202653]
[1771920994863,1.23090977,76.875,76.85,11.62588199]
[1771920995567,1.23090977,76.875,76.851,13.01219242]
[1771920995751,1.23090977,76.873,76.851,1.23614454]
[1771920996956,13.00863773,76.872,76.851,1.23614454]
[1771920997462,1.23090977,76.871,76.851,1.23614454]
[1771920998166,1.23090977,76.871,76.814,102.62287586]
[1771920998167,1.23090977,76.871,76.84,11.62588199]
[1771920998347,1.23090977,76.869,76.84,1.23614454]
[1771920998548,1.23090977,76.869,76.833,1.23614454]
[1771920999672,0.1,76.88,76.851,1.23614454]
[1771920999673,1.23090977,76.879,76.851,1.23614454]
[1771920999859,1.23090977,76.878,76.851,1.23614454]
[1771921001170,1.23090977,76.876,76.837,1.23614454]
[1771921001471,1.23090977,76.869,76.831,1.23614454]
[1771921001670,1.23090977,76.867,76.833,1.23614454]
[1771921002056,11.62588199,76.85,76.82,12.86202653]
[1771921002374,1.23090977,76.849,76.813,14.25470313]
[1771921002560,1.23090977,76.839,76.805,1.23614454]
[1771921003460,1.23090977,76.839,76.811,1.23614454]
[1771921003675,1.23090977,76.837,76.811,1.23614454]
[1771921004571,1.23090977,76.835,76.81,11.62588199]
[1771921004777,0.28432314,76.836,76.783,32.55913128]
[1771921004778,1.23090977,76.829,76.795,1.23614454]
[1771921004976,1.23090977,76.829,76.8,11.62588199]
[1771921005472,1.23090977,76.829,76.8,12.86202653]
[1771921005650,1.23090977,76.827,76.8,12.86202653]
[1771921006765,11.62588199,76.82,76.781,13.02392437]
[1771921006975,11.62588199,76.82,76.782,1.23614454]
[1771921006976,1.23090977,76.819,76.782,1.23614454]
[1771921007352,1.23090977,76.827,76.801,1.23614454]
[1771921007558,13.01499621,76.835,76.811,1.23614454]
[1771921011880,5.21410634,76.85,76.773,52.10118092]
[1771921011881,1.15350204,76.845,76.82,5.21410634]
[1771921012174,1.15350204,76.845,76.814,1.21230756]
[1771921017081,5.21410634,76.84,76.814,1.21230756]
[1771921017286,1.15350204,76.839,76.814,1.21230756]
[1771921019893,1.15350204,76.843,76.816,1.21230756]
[1771921021094,13.01371645,76.842,76.818,1.21230756]
[1771921021293,5.21410634,76.86,76.831,1.21230756]
[1771921021481,13.01049947,76.861,76.831,1.21230756]
[1771921021676,5.31410634,76.88,76.841,1.21230756]
[1771921021884,6.80201827,76.879,76.851,1.21230756]
[1771921022089,13.00745327,76.879,76.85,5.21410634]
[1771921022293,5.21410634,76.86,76.834,1.21230756]